bitfinex/quotes_ETHUSD_20251028
["timestamp","ask_amount","ask_price","bid_price","bid_amount"]
[1761655299644,3.98775734,4110.9,4110.8,0.002]
[1761655299962,2.43255734,4110.9,4110.8,0.4468]
[1761655302961,6.69285399,4110.9,4110.8,0.002]
[1761655304019,2.43255734,4110.9,4110.8,0.002]
[1761655304419,2.43175734,4110.9,4110.8,0.002]
[1761655307840,2.43175734,4110.9,4110.8,0.4468]
[1761655308552,2.43175734,4110.9,4110.8,0.002]
[1761655312530,2.67265734,4110.9,4110.8,0.002]
[1761655314547,2.43175734,4110.9,4110.8,0.4468]
[1761655315062,2.43175734,4110.9,4110.8,0.002]
[1761655316653,2.43175734,4110.9,4110.8,0.4468]
[1761655320878,2.43175734,4110.9,4110.8,0.002]
[1761655321169,6.79105399,4110.9,4110.8,0.002]
[1761655321331,6.69205399,4110.9,4110.8,0.002]
[1761655322072,6.93295399,4110.9,4110.8,0.002]
[1761655322647,8.48815399,4110.9,4110.8,0.002]
[1761655323642,8.38915399,4110.9,4110.8,0.002]
[1761655324443,8.48815399,4110.9,4110.8,0.002]
[1761655324870,8.24725399,4110.9,4110.8,0.002]
[1761655325445,3.98695734,4110.9,4110.8,0.002]
[1761655327540,3.98695734,4110.9,4110.8,0.4701]
[1761655328378,3.98795734,4110.9,4110.8,0.4701]
[1761655328982,3.98715734,4110.9,4110.8,0.4701]
[1761655335105,3.98715734,4110.9,4110.8,0.002]
[1761655335395,3.98715734,4110.9,4110.8,0.4355]
[1761655338404,0.001,4110.9,4110.8,0.4355]
[1761655338694,2.43355734,4110.9,4110.8,0.86135]
[1761655339269,2.43355734,4110.9,4110.8,0.4355]
[1761655340798,2.43355734,4110.9,4110.8,0.002]
[1761655340990,2.43355734,4110.9,4110.8,0.4355]
[1761655341998,2.43355734,4110.9,4110.8,0.002]
[1761655353308,2.43275734,4110.9,4110.8,0.002]
[1761655355591,2.53215734,4110.9,4110.8,0.002]
[1761655356007,2.43275734,4110.9,4110.8,0.002]
[1761655358140,2.43275734,4110.9,4110.8,0.461]
[1761655360340,2.43275734,4110.9,4110.8,0.002]
[1761655360545,2.43275734,4110.9,4110.8,0.461]
[1761655362252,2.38275734,4110.9,4110.8,0.461]
[1761655367232,2.38375734,4110.9,4110.8,0.461]
[1761655368560,0.001,4110.9,4110.8,4.5888]
[1761655369860,5.38350461,4111.0,4110.8,4.5888]
[1761655370062,2.951,4111.0,4110.9,0.5806]
[1761655370422,5.38349817,4111.0,4110.9,0.1216]
[1761655371332,5.48289817,4111.0,4110.9,0.1216]
[1761655371663,5.38349817,4111.0,4110.9,0.1216]
[1761655374066,2.43255734,4110.9,4110.8,0.002]
[1761655377974,2.43175734,4110.9,4110.8,0.461]
[1761655383190,2.43175734,4110.9,4110.8,0.002]
[1761655385963,2.67255734,4110.9,4110.8,0.002]
[1761655389264,2.57275734,4110.9,4110.8,0.002]
[1761655390910,2.67255734,4110.9,4110.8,0.002]
[1761655391761,6.93485904,4110.9,4110.8,0.002]
[1761655392501,6.83505904,4110.9,4110.8,0.002]
[1761655392709,6.69405904,4110.9,4110.8,0.002]
[1761655394600,6.93445904,4110.9,4110.8,0.002]
[1761655395705,2.43175734,4110.9,4110.8,0.002]
[1761655401195,2.43175734,4110.9,4110.8,0.4563]
[1761655402419,2.43095734,4110.9,4110.8,0.4563]
[1761655403029,2.43255734,4110.9,4110.8,0.4563]
[1761655403203,2.43255734,4110.9,4110.8,0.5779]
[1761655405533,2.43355734,4110.9,4110.8,0.5779]
[1761655409923,2.43355734,4110.9,4110.8,1.00583]
[1761655410118,0.001,4110.9,4110.8,1.00583]
[1761655410323,2.43355734,4110.9,4110.8,1.00583]
[1761655414425,2.43355734,4110.9,4110.8,4.70523]
[1761655420342,0.001,4110.9,4110.8,4.70523]
[1761655422157,0.001,4110.9,4110.8,4.25093]
[1761655422358,0.001,4110.9,4110.8,4.69003]
[1761655422563,0.001,4110.9,4110.8,4.25093]
[1761655422960,0.001,4110.9,4110.8,4.69003]
[1761655426755,0.0002,4110.9,4110.8,4.69003]
[1761655426953,2.43275734,4110.9,4110.8,4.25093]
[1761655427162,0.0002,4110.9,4110.8,3.823]
[1761655427465,0.0002,4110.9,4110.8,4.2621]
[1761655427760,2.43275734,4110.9,4110.8,4.2621]
[1761655427982,0.0002,4110.9,4110.8,4.2621]
[1761655434352,0.0002,4110.9,4110.8,3.823]
[1761655435186,0.0002,4110.9,4110.8,4.2621]
[1761655435387,0.0002,4110.9,4110.8,4.68851]
[1761655436698,2.43275734,4110.9,4110.8,3.823]
[1761655437195,0.0002,4110.9,4110.8,3.823]
[1761655437399,2.43275734,4110.9,4110.8,3.823]
[1761655439399,2.57425734,4110.9,4110.8,3.823]
[1761655439602,2.67475734,4110.9,4110.8,3.823]
[1761655440769,2.43275734,4110.9,4110.8,3.823]
[1761655441016,0.0002,4110.9,4110.8,4.2055]
[1761655441369,0.0002,4110.9,4110.8,4.6446]
[1761655441670,2.9022,4111.0,4110.8,4.6446]
[1761655441882,2.9022,4111.0,4110.8,4.2621]
[1761655442096,5.3347046,4111.0,4110.8,3.823]
[1761655442284,2.43255734,4110.9,4110.8,3.823]
[1761655442679,5.33471903,4111.0,4110.8,3.823]
[1761655442880,5.33471903,4111.0,4110.8,4.1405]
[1761655442881,2.9022,4111.0,4110.8,4.1405]
[1761655443415,5.33474882,4111.0,4110.8,4.1405]
[1761655443892,5.33474882,4111.0,4110.8,0.4411]
[1761655444279,5.33474882,4111.0,4110.8,0.002]
[1761655445989,2.9022,4111.0,4110.8,0.002]
[1761655446190,5.33470397,4111.0,4110.8,0.002]
[1761655446586,2.43255734,4110.9,4110.8,0.002]
[1761655447203,2.67415734,4110.9,4110.8,0.002]
[1761655449528,2.67455734,4110.9,4110.8,0.002]
[1761655450145,4.22975734,4110.9,4110.8,0.002]
[1761655450483,5.44575734,4110.9,4110.8,0.002]
[1761655451387,5.44495734,4110.9,4110.8,0.002]
[1761655452124,10.56067415,4110.9,4110.8,0.002]
[1761655461416,2.9022,4111.0,4110.8,0.5783]
[1761655461922,2.9022,4111.0,4110.9,0.4547]
[1761655463019,5.33469817,4111.0,4110.9,0.4547]
[1761655463408,2.43255734,4110.9,4110.8,0.1236]
[1761655463605,2.43255734,4110.9,4110.8,0.002]
[1761655467861,2.9022,4111.0,4110.8,0.4567]
[1761655468014,2.9022,4111.0,4110.9,3.2332718]
[1761655468219,2.9022,4111.0,4110.9,3.6879718]
[1761655475758,2.9014,4111.0,4110.9,3.6879718]
[1761655477183,0.01,4112.8,4111.7,2.43208405]
[1761655477785,0.01,4112.8,4111.7,2.99268405]
[1761655478329,0.01,4112.8,4111.7,3.39818805]
[1761655479944,2.44143454,4112.8,4111.7,3.39818805]
[1761655480264,0.2059,4112.4,4111.7,0.1216]
[1761655480465,0.2059,4112.4,4111.7,2.99268405]
[1761655480769,0.2059,4112.4,4111.7,3.31413246]
[1761655481134,2.63757111,4112.4,4111.7,3.31413246]
[1761655481766,2.43174053,4112.3,4111.7,0.88204841]
[1761655481931,2.43174053,4112.3,4111.7,0.1216]
[1761655482432,0.01,4112.8,4111.7,0.844504]
[1761655482755,0.3049,4112.7,4111.7,3.27658805]
[1761655482950,0.2059,4112.7,4111.7,3.27658805]
[1761655483170,2.44147854,4112.8,4111.7,3.27658805]
[1761655483641,0.01,4112.8,4111.7,3.27658805]
[1761655484987,2.44145687,4112.8,4111.7,3.27658805]
[1761655485666,0.01,4112.8,4111.7,3.27658805]
[1761655486060,2.4315004,4112.7,4111.7,3.27658805]
[1761655486582,0.01,4112.8,4111.7,3.30090889]
[1761655486883,0.01,4112.8,4111.8,0.439]
[1761655487083,0.01,4112.8,4112.4,0.405504]
[1761655487284,0.01,4112.8,4112.5,2.43157176]
[1761655487484,0.01,4112.8,4112.5,0.439]
[1761655487685,0.01,4112.8,4112.4,2.43166529]
[1761655487884,0.01,4112.8,4112.5,2.43155992]
[1761655488049,0.01,4112.8,4112.5,2.87055992]
[1761655488390,0.01,4112.8,4112.5,0.439]
[1761655489051,0.01,4112.8,4112.5,2.87060491]
[1761655489260,0.01,4112.8,4112.6,2.4315492]
[1761655489459,0.01,4112.8,4112.6,2.8705492]
[1761655489891,0.01,4112.8,4112.6,0.439]
[1761655490874,0.01,4112.8,4112.5,2.43159928]
[1761655491184,0.01,4112.8,4112.7,2.83699669]
[1761655491383,0.01,4112.8,4112.7,3.91932492]
[1761655491588,0.01,4112.8,4112.7,4.38263984]
[1761655491801,0.01,4112.8,4112.7,4.35832492]
[1761655492365,0.01,4112.8,4112.7,4.50343984]
[1761655492563,0.011,4112.8,4112.7,4.50343984]
[1761655492811,0.011,4112.8,4112.7,4.82540861]
[1761655493152,0.011,4112.8,4112.7,4.70460861]
[1761655493358,0.011,4112.8,4112.7,4.38263984]
[1761655493552,0.011,4112.8,4112.7,4.35832492]
[1761655494173,0.011,4112.8,4112.7,4.38263984]
[1761655495200,0.011,4112.8,4112.7,4.35832492]
[1761655495499,0.011,4112.8,4112.7,4.38263984]
[1761655496470,0.05,4113.4,4113.3,0.405504]
[1761655496663,0.05,4113.4,4113.3,8.39135882]
[1761655500070,0.0492,4113.4,4113.3,8.39135882]
[1761655500275,0.0492,4113.4,4113.3,0.844504]
[1761655500509,0.0492,4113.4,4113.3,3.27564201]
[1761655500787,0.0492,4113.4,4113.3,1.48776533]
[1761655501712,0.0492,4113.4,4113.3,3.91890334]
[1761655502898,0.0492,4113.4,4113.1,5.11571681]
[1761655503124,0.0492,4113.4,4113.3,0.1208]
[1761655503690,0.1494,4113.4,4113.3,0.1208]
[1761655503987,0.0492,4113.4,4113.3,0.1208]
[1761655504192,0.1494,4113.4,4112.0,2.4318758]
[1761655504406,2.43139604,4112.9,4112.1,0.24318758]
[1761655504604,2.43139604,4112.9,4112.2,0.405504]
[1761655504920,2.43123745,4113.2,4112.2,0.405504]
[1761655504921,0.3041,4113.2,4112.2,5.11571681]
[1761655505108,2.43125673,4113.1,4112.3,0.4658]
[1761655505314,2.43125673,4113.1,4111.5,2.43214712]
[1761655505315,2.43155015,4112.7,4111.8,2.43200781]
[1761655505519,2.43155015,4112.7,4111.9,0.75477246]
[1761655505710,2.43155015,4112.7,4112.0,0.405504]
[1761655506023,2.43143458,4112.8,4112.0,2.83738511]
[1761655506227,2.73549172,4112.9,4112.2,0.405504]
[1761655506849,0.3041,4112.9,4112.2,2.43178704]
[1761655507032,0.3041,4112.9,4112.2,3.0166893]
[1761655507207,0.3041,4112.9,4112.2,0.58490226]
[1761655507407,0.3041,4112.9,4112.2,2.83728652]
[1761655507725,0.0492,4113.4,4112.7,2.83699193]
[1761655507913,0.0492,4113.4,4113.0,0.405504]
[1761655508126,0.0492,4113.4,4113.0,2.83677659]
[1761655508530,0.0492,4113.4,4113.1,2.43123988]
[1761655508713,0.0492,4113.4,4113.1,2.86803988]
[1761655509043,0.0492,4113.4,4113.2,2.43119661]
[1761655509440,0.0492,4113.4,4113.2,0.4368]
[1761655509640,0.0492,4113.4,4113.2,2.86799304]
[1761655510419,0.0492,4113.4,4113.1,0.33694046]
[1761655510420,0.0492,4113.4,4113.3,2.83664201]
[1761655510623,0.0492,4113.4,4113.3,3.27344201]
[1761655510624,0.0502,4113.4,4113.3,3.27344201]
[1761655510822,0.0502,4113.4,4113.3,3.87760577]
[1761655511217,0.0502,4113.4,4113.3,3.90191715]
[1761655512519,0.0502,4113.4,4113.3,3.87760577]
[1761655513045,0.0502,4113.4,4113.3,5.43280577]
[1761655514137,0.0502,4113.4,4113.3,5.55360577]
[1761655514752,1e-08,4113.4,4113.3,5.43280577]
[1761655514919,1e-08,4113.4,4113.3,5.75477454]
[1761655516722,0.01,4113.8,4113.6,4.39166471]
[1761655516920,0.01,4113.8,4113.6,5.78365284]
[1761655517254,0.01,4114.8,4113.8,0.405504]
[1761655517414,0.01,4114.8,4114.7,3.05231483]
[1761655517927,0.01,4114.8,4114.7,3.48911483]
[1761655518637,0.01,4114.8,4114.7,3.51341793]
[1761655518838,0.01,4114.8,4114.7,5.46224108]
[1761655519173,0.01,4114.8,4114.7,5.43793798]
[1761655522274,0.01,4114.8,4114.7,2.83581483]
[1761655523971,0.01,4114.8,4114.7,3.27261483]
[1761655524674,0.0092,4114.8,4114.7,3.29691793]
[1761655524877,0.0092,4114.8,4114.7,3.41771793]
[1761655525671,0.0092,4114.8,4114.7,2.95661483]
[1761655525862,0.0092,4114.8,4114.7,3.49531503]
[1761655526058,0.0092,4114.8,4114.7,3.93211503]
[1761655526636,0.0092,4114.8,4114.7,3.83561813]
[1761655527853,0.0092,4114.8,4114.7,3.39881813]
[1761655528563,0.01,4115.8,4115.7,2.83522433]
[1761655528779,0.01,4115.8,4115.7,4.82722433]
[1761655529241,0.01,4115.8,4115.7,4.85152153]
[1761655529443,0.01,4116.8,4116.0,1.960704]
[1761655529666,0.01,4116.8,4116.3,4.60657017]
[1761655529868,0.01,4116.8,4116.3,5.48998337]
[1761655530172,0.01,4116.8,4116.7,4.38983412]
[1761655530570,0.01,4116.8,4116.7,4.82663412]
[1761655530946,0.0595,4117.7,4117.2,0.405504]
[1761655531142,0.1474,4117.9,4117.4,2.83420734]
[1761655531360,0.1474,4117.9,4117.5,2.42865225]
[1761655531556,0.1474,4117.9,4117.7,0.405504]
[1761655531892,0.1474,4117.9,4117.4,0.405504]
[1761655532073,2.42813541,4118.4,4117.6,0.405504]
[1761655532380,0.01,4118.8,4117.7,2.4285402]
[1761655532682,0.1358,4118.3,4117.7,0.405504]
[1761655532879,0.1358,4118.3,4118.0,2.83383544]
[1761655533087,0.1358,4118.3,4118.0,0.405504]
[1761655533257,0.0991,4118.2,4117.5,0.405504]
[1761655533650,0.0991,4118.2,4117.6,0.405504]
[1761655534078,2.52735377,4118.2,4117.5,0.405504]
[1761655534278,2.4283138,4118.1,4117.3,0.405504]
[1761655534595,2.4283138,4118.1,4117.2,0.405504]
[1761655534596,0.1077,4117.5,4117.2,0.405504]
[1761655534800,0.2069,4117.5,4117.2,0.405504]
[1761655534945,0.2069,4117.5,4117.0,0.405504]
[1761655535465,0.2069,4117.5,4117.1,0.405504]
[1761655535665,0.1076,4117.8,4117.1,3.28685704]
[1761655535891,0.1076,4117.8,4117.1,2.83435704]
[1761655536050,0.1076,4117.8,4117.3,0.405504]
[1761655536553,0.1076,4117.8,4117.7,0.1208]
[1761655538280,2.56399408,4118.3,4116.3,2.63081954]
[1761655538281,0.1079,4117.9,4117.1,0.02428894]
[1761655538584,0.1079,4117.9,4117.3,2.83423513]
[1761655538781,0.1079,4117.9,4117.3,3.36054751]
[1761655538988,0.1079,4117.9,4117.4,0.405504]
[1761655539152,0.1079,4117.9,4117.4,2.83418542]
[1761655539479,0.2069,4117.9,4117.4,2.83418542]
[1761655539881,0.2069,4117.9,4117.4,0.405504]
[1761655540086,0.099,4117.8,4117.1,0.405504]
[1761655540281,2.52749698,4117.8,4117.1,0.405504]
[1761655540583,2.42855942,4117.7,4117.0,0.405504]
[1761655540765,0.099,4117.7,4117.0,0.405504]
[1761655540964,0.099,4117.6,4117.0,0.405504]
[1761655541167,0.099,4117.6,4117.1,0.405504]
[1761655542588,0.099,4117.6,4116.8,2.42905696]
[1761655542895,2.52760509,4117.6,4116.9,0.405504]
[1761655543393,0.1079,4117.9,4116.9,0.405504]
[1761655543394,0.1079,4117.9,4117.0,0.405504]
[1761655543596,0.1079,4117.9,4117.6,0.405504]
[1761655544057,0.2069,4117.9,4117.4,0.405504]
[1761655544259,0.2069,4117.9,4117.3,0.405504]
[1761655544260,0.1079,4117.9,4117.3,0.405504]
[1761655544475,0.1079,4117.9,4117.6,2.42859311]
[1761655544679,0.2348,4118.3,4117.6,2.42859311]
[1761655544880,2.66298869,4118.3,4117.6,0.405504]
[1761655545088,0.2348,4118.3,4117.6,2.83409902]
[1761655545318,2.66299978,4118.3,4117.6,0.405504]
[1761655546103,0.1767,4119.0,4118.1,0.405504]
[1761655546290,0.1767,4119.0,4118.2,0.02428245]
[1761655546481,0.1359,4118.7,4118.2,0.02428245]
[1761655546682,0.1359,4118.7,4118.2,0.405504]
[1761655546901,0.1359,4118.7,4118.2,0.33105861]
[1761655547117,0.1359,4118.7,4117.1,1.87726096]
[1761655547288,0.099,4118.6,4117.9,0.405504]
[1761655547488,0.1359,4118.7,4117.9,0.405504]
[1761655547710,0.2757,4119.0,4118.1,0.405504]
[1761655547910,0.2757,4119.0,4118.1,3.05949345]
[1761655548114,0.1355,4118.9,4118.1,3.05949345]
[1761655548286,2.43789218,4118.8,4118.7,0.1208]
[1761655548481,2.53729218,4118.8,4118.7,0.1208]
[1761655548933,0.01,4118.8,4118.7,0.1208]
[1761655549089,0.0092,4118.8,4118.7,0.1208]
[1761655549419,0.1086,4118.8,4118.7,0.1208]
[1761655549983,0.0092,4118.8,4118.7,0.1208]
[1761655550401,2.53649161,4118.8,4118.7,0.1208]
[1761655551284,0.1086,4118.8,4118.7,0.1208]
[1761655551889,0.0092,4118.8,4118.7,0.1208]
[1761655552314,0.1086,4118.8,4118.7,0.1208]
[1761655552633,2.43709161,4118.8,4118.7,0.1208]
[1761655552842,0.0092,4118.8,4118.7,0.858004]
[1761655553137,0.0092,4118.8,4118.7,3.28595456]
[1761655553440,0.0092,4118.8,4118.7,3.85735546]
[1761655554134,0.0092,4118.8,4118.7,3.40485546]
[1761655554337,0.05,4119.4,4119.2,0.405504]
[1761655554505,0.05,4119.4,4119.3,5.06650092]
[1761655556837,0.05,4119.4,4119.3,4.38830092]
[1761655557049,0.05,4119.4,4119.3,5.04490564]
[1761655557343,0.05,4119.4,4119.3,5.49740564]
[1761655559816,0.05,4119.4,4119.3,5.84561494]
[1761655562551,0.05,4119.4,4119.3,6.18568999]
[1761655562850,0.01,4119.8,4119.3,6.18568999]
[1761655562851,0.01,4119.8,4119.7,4.38806521]
[1761655563052,0.01,4120.8,4120.7,2.83227615]
[1761655563216,0.01,4120.8,4120.7,4.86424387]
[1761655563416,0.01,4120.8,4120.7,4.96077615]
[1761655564259,0.05,4122.4,4120.7,1.14078435]
[1761655564430,0.149,4122.4,4121.7,2.83168737]
[1761655564627,0.05,4122.4,4121.7,2.83168737]
[1761655564829,0.05,4122.4,4121.7,2.8559492]
[1761655565062,0.05,4122.4,4121.7,0.405504]
[1761655565244,0.149,4122.4,4121.7,2.8559492]
[1761655565966,0.05,4122.4,4121.7,3.2875492]
[1761655566265,0.05,4122.4,4121.7,3.85893037]
[1761655566423,0.05,4122.4,4121.7,3.83466854]
[1761655567481,0.05,4122.4,4121.7,5.41413037]
[1761655567652,0.05,4122.4,4121.7,5.38986854]
[1761655567855,0.05,4122.4,4121.7,5.73807784]
[1761655568312,0.05,4122.4,4121.7,4.18287784]
[1761655568587,0.05,4122.4,4121.7,3.83466854]
[1761655568951,0.05,4122.4,4121.7,3.85893037]
[1761655569802,0.05,4122.4,4121.7,3.45342637]
[1761655570252,0.05,4122.4,4121.7,6.07815289]
[1761655570954,0.05,4122.4,4121.7,5.38986854]
[1761655571155,0.05,4122.4,4121.7,4.95826854]
[1761655571350,0.05,4122.4,4121.7,5.41176854]
[1761655573467,0.05,4122.4,4121.7,5.75997784]
[1761655573665,0.0092,4121.8,4121.7,5.75997784]
[1761655574282,0.0092,4121.8,4121.7,5.88077784]
[1761655574866,0.0092,4121.8,4121.7,6.10005289]
[1761655575095,0.0092,4121.8,4121.7,5.75997784]
[1761655575677,0.05,4122.4,4122.0,0.405504]
[1761655575885,0.05,4122.4,4122.3,4.60053424]
[1761655576280,0.05,4122.4,4122.3,5.05403424]
[1761655578491,0.05,4122.4,4122.3,5.42059894]
[1761655578688,1e-08,4122.4,4122.3,5.42059894]
[1761655578892,1e-08,4122.4,4122.3,5.39410929]
[1761655579092,1e-08,4122.4,4122.3,6.58654725]
[1761655579419,0.01,4123.8,4123.7,2.83051066]
[1761655579622,0.01,4123.8,4123.7,2.85476072]
[1761655579830,0.01,4123.8,4123.7,3.30826072]
[1761655579999,0.11,4123.8,4123.1,2.42531356]
[1761655580179,0.11,4123.8,4122.9,2.42542527]
[1761655580504,0.11,4123.8,4122.9,0.26093751]
[1761655580690,2.42500666,4123.7,4123.0,0.405504]
[1761655580890,0.11,4123.8,4122.9,0.405504]
[1761655581216,0.167,4122.9,4122.3,0.69546384]
[1761655581576,0.1023,4122.8,4122.3,0.69546384]
[1761655581915,0.1023,4122.8,4122.5,0.405504]
[1761655582210,0.1023,4122.8,4122.3,0.69546384]
[1761655582383,0.167,4122.9,4122.3,3.1212636]
[1761655582579,0.1023,4122.7,4122.5,0.405504]
[1761655582790,0.167,4122.9,4122.5,0.405504]
[1761655582991,0.1023,4122.8,4122.5,0.405504]
[1761655583185,0.1023,4122.8,4122.4,0.405504]
[1761655583602,0.167,4122.9,4122.4,0.405504]
[1761655583822,0.1023,4122.8,4122.4,0.75818944]
[1761655584227,0.1023,4122.8,4122.4,0.405504]
[1761655584833,0.1023,4122.8,4122.7,0.1208]
[1761655585333,0.1023,4123.4,4122.7,0.1208]
[1761655585534,0.1023,4123.4,4122.6,2.42560138]
[1761655585724,0.1023,4123.4,4123.3,0.1208]
[1761655586404,2.5274831,4123.4,4123.3,0.1208]
[1761655587304,0.1023,4123.4,4123.3,0.1208]
[1761655588810,0.113,4123.8,4123.3,0.1208]
[1761655589263,2.53794786,4123.8,4123.7,0.1208]
[1761655591046,2.42500666,4123.7,4122.4,0.405504]
[1761655591210,0.1036,4123.7,4123.2,0.1208]
[1761655591409,0.1036,4123.6,4123.2,0.1208]
[1761655591647,2.42524191,4123.3,4123.2,0.1208]
[1761655592143,2.52884191,4123.3,4123.2,0.1208]
[1761655592948,1.676,4123.2,4121.5,3.6994]
[1761655593159,2.42590624,4122.2,4121.5,0.29106162]
[1761655593461,0.1912,4121.6,4121.5,0.29106162]
[1761655593864,0.1912,4121.6,4121.5,0.41186162]
[1761655594169,0.1008,4122.9,4121.7,2.4261252]
[1761655594350,0.1008,4122.6,4121.5,0.29106162]
[1761655594673,0.1885,4121.6,4121.3,6.12581863]
[1761655594886,0.1885,4121.6,4121.3,3.6994]
[1761655595381,0.1025,4122.3,4121.6,2.42622472]
[1761655595542,0.1025,4122.3,4121.6,2.42621949]
[1761655595745,0.1025,4122.3,4121.6,2.4262349]
[1761655595975,0.1025,4122.6,4121.7,0.02426183]
[1761655596159,0.1025,4122.6,4121.6,3.6994]
[1761655596331,2.52816614,4122.6,4121.7,2.42614172]
[1761655596651,2.52816614,4122.6,4121.6,3.6994]
[1761655596851,0.1025,4122.5,4121.8,2.42611164]
[1761655597049,0.1025,4122.5,4121.9,2.42602639]
[1761655597261,0.1025,4122.9,4121.8,1.28493931]
[1761655597464,2.42554161,4122.8,4121.8,1.75923931]
[1761655597778,2.42554082,4122.8,4121.8,1.73497807]
[1761655597990,0.1025,4122.8,4122.1,2.42594218]
[1761655598192,0.1017,4122.8,4122.2,2.42588075]
[1761655598664,2.52725284,4122.8,4122.0,2.42596547]
[1761655598989,0.1017,4122.8,4121.9,2.42605554]
[1761655599172,0.1696,4123.0,4121.9,0.37555296]
[1761655599372,0.1696,4123.0,4121.6,0.405504]
[1761655599553,2.42581568,4122.4,4121.6,0.405504]
[1761655599752,2.42581568,4122.4,4121.6,2.83174471]
[1761655599953,2.42587442,4122.3,4121.6,2.42622673]
[1761655600149,2.42577695,4122.4,4121.7,2.42617893]
[1761655600371,2.42577695,4122.4,4121.6,2.42622823]
[1761655600685,1.5552,4122.9,4121.5,3.6994]
[1761655600868,2.42595292,4122.1,4121.5,3.6994]
[1761655601352,0.099,4122.1,4121.5,3.6994]
[1761655601553,2.42596272,4122.1,4121.5,3.6994]
[1761655601754,0.2874,4122.0,4121.5,3.6994]
[1761655602182,0.2874,4122.0,4121.3,2.42641209]
[1761655602389,0.2874,4122.0,4121.4,2.42635132]
[1761655602553,0.2874,4122.0,4121.3,2.42641089]
[1761655602754,0.2874,4122.0,4121.5,2.42625439]
[1761655603282,0.2874,4122.0,4121.1,0.01]
[1761655603483,2.42584647,4122.3,4121.5,2.42629228]
[1761655603785,2.42589638,4122.2,4121.4,2.42635619]
[1761655603985,2.42589638,4122.2,4121.5,6.12568633]
[1761655604188,2.42589638,4122.2,4122.1,0.1208]
[1761655604589,1.7248,4123.0,4122.1,0.1208]
[1761655604884,0.099,4122.9,4122.1,0.1208]
[1761655605184,2.42559487,4122.7,4122.6,0.1208]
[1761655605788,0.1696,4123.0,4122.6,0.1208]
[1761655605977,2.42559487,4122.7,4122.6,0.1208]
[1761655606181,2.42565699,4122.6,4121.9,2.83155363]
[1761655606389,2.52447721,4122.9,4121.9,2.95182884]
[1761655606572,2.42547721,4122.9,4122.6,0.1208]
[1761655607087,0.099,4122.8,4122.6,0.1208]
[1761655607262,2.42559487,4122.7,4122.6,0.1208]
[1761655608196,0.099,4122.7,4121.8,0.002]
[1761655608370,0.1696,4123.0,4122.6,0.1208]
[1761655608693,2.59502871,4123.0,4122.6,0.1208]
[1761655608897,0.1208,4123.6,4122.9,0.1208]
[1761655609194,2.42520446,4123.4,4122.9,0.1208]
[1761655609378,2.42520446,4123.4,4123.3,0.1208]
[1761655609573,2.42514224,4123.5,4123.3,0.1208]
[1761655609760,2.4251831,4123.4,4123.3,0.1208]
[1761655611970,0.01,4123.8,4123.3,0.1208]
[1761655612175,0.109,4123.8,4123.3,0.1208]
[1761655612395,2.42505912,4123.7,4122.8,0.4743]
[1761655612623,0.109,4123.8,4122.9,2.75601899]
[1761655612624,2.42508659,4123.6,4122.9,2.75601899]
[1761655612921,2.42508659,4123.6,4122.9,2.75600859]
[1761655613222,2.42508659,4123.6,4123.5,0.1208]
[1761655613697,2.52408659,4123.6,4123.5,0.1208]
[1761655614836,2.42550655,4122.9,4122.0,2.42597082]
[1761655615018,2.42538337,4123.1,4122.1,0.66016708]
[1761655615201,0.2669,4123.4,4122.8,0.1208]
[1761655615395,2.42547495,4123.0,4122.8,0.1208]
[1761655615630,2.42547495,4123.0,4122.1,2.42594272]
[1761655615631,2.42549347,4122.9,4122.1,2.42593721]
[1761655615831,2.42541838,4123.0,4122.9,0.1208]
[1761655616330,2.69231838,4123.0,4122.9,0.1208]
[1761655619926,2.42541838,4123.0,4122.9,0.1208]
[1761655620512,0.099,4123.6,4122.9,0.1208]
[1761655620750,0.099,4123.6,4122.5,0.4743]
[1761655620751,2.4251138,4123.6,4123.4,0.1208]
[1761655620927,2.42512428,4123.5,4123.4,0.1208]
[1761655621117,3.98022429,4123.7,4123.4,0.1208]
[1761655621118,2.42505408,4123.7,4123.4,0.1208]
[1761655621317,2.42500666,4123.7,4123.4,0.1208]
[1761655621527,0.01,4123.8,4122.9,2.42547721]
[1761655621728,0.01,4123.8,4123.6,0.1208]
[1761655622052,2.42500666,4123.7,4123.6,0.1208]
[1761655622246,0.01,4123.8,4123.6,0.1208]
[1761655622247,2.43495243,4123.8,4123.6,0.1208]
[1761655622721,2.42500666,4123.7,4123.6,0.1208]
[1761655623844,0.0092,4123.8,4123.6,0.1208]
[1761655624033,2.43415505,4123.8,4123.6,0.1208]
[1761655624235,0.0092,4123.8,4123.6,0.1208]
[1761655624639,0.0092,4123.8,4123.7,0.4582]
[1761655625043,0.0092,4123.8,4123.6,0.1208]
[1761655625250,0.0092,4123.8,4123.6,0.42121809]
[1761655625452,0.0092,4123.8,4123.7,3.00400666]
[1761655625627,0.0092,4123.8,4123.7,3.02825672]
[1761655625827,0.0092,4123.8,4123.7,3.00400666]
[1761655626160,0.0092,4123.8,4123.7,3.39357136]
[1761655626335,0.0092,4123.8,4123.7,3.97786516]
[1761655626536,0.0092,4123.8,4123.7,4.38336916]
[1761655627567,0.0092,4123.8,4123.7,1.1632938]
[1761655627735,0.0092,4123.8,4123.7,3.00400666]
[1761655628575,0.0092,4123.8,4123.7,3.43686072]
[1761655628782,0.0092,4123.8,4123.7,3.68137536]
[1761655629139,0.0092,4123.8,4123.7,3.29181066]
[1761655630046,0.0092,4123.8,4123.7,2.88630666]
[1761655630247,0.0092,4123.8,4123.7,3.41744585]
[1761655631243,0.0092,4123.8,4123.7,2.95614585]
[1761655632050,0.0092,4123.8,4123.7,2.98039591]
[1761655632249,0.0092,4123.8,4123.7,3.41744585]
[1761655633978,0.0092,4123.8,4123.7,2.95614585]